[Event "Championnat d'Europe de Blitz"]
[Date "2024.12.09"]
[White "Janik, Igor"]
[Black "Ribeiro, Rodrigo"]
[WhiteElo "2515"]
[BlackElo "2143"]
[Round "12.39"]
[Result "1/2-1/2"]
[TimeControl "180+2"]

1. b3 {[%emt 00:00:57] [%clk 00:03:04]} c5 {[%clk 00:03:04]} 2. Bb2 {[%clk
00:03:05]} Nc6 {[%clk 00:03:06]} 3. g3 {[%emt 00:00:03] [%clk 00:03:06]} b6
{[%clk 00:03:07]} 4. Bg2 {[%clk 00:03:07]} Bb7 {[%clk 00:03:09]} 5. c4 {[%clk
00:03:08]} e6 {[%emt 00:00:03] [%clk 00:03:08]} 6. Nc3 {[%emt 00:00:03] [%clk
00:03:07]} Nf6 {[%emt 00:00:01] [%clk 00:03:09]} 7. Nf3 {[%emt 00:00:03] [%clk
00:03:04]} d5 {[%emt 00:00:11] [%clk 00:03:01]} 8. cxd5 {[%emt 00:00:01] [%clk
00:03:05]} Nxd5 {[%emt 00:00:04]} 9. O-O {[%emt 00:00:03] [%clk 00:03:01]} Nf6
{[%emt 00:00:08] [%clk 00:02:55]} 10. d4 {[%emt 00:00:14] [%clk 00:02:49]} Nxd4
{[%emt 00:00:29] [%clk 00:02:27]} 11. Nxd4 {[%emt 00:00:02] [%clk 00:02:50]}
Bxg2 {[%emt 00:00:01] [%clk 00:02:28]} 12. Nxe6 {[%emt 00:00:04] [%clk
00:02:48]} Qxd1 {[%emt 00:00:05] [%clk 00:02:25]} 13. Rfxd1 {[%clk 00:02:48]}
fxe6 {[%emt 00:00:08] [%clk 00:02:20]} 14. Kxg2 {[%emt 00:00:01] [%clk
00:02:49]} Be7 {[%emt 00:00:17] [%clk 00:02:05]} 15. Nb5 {[%emt 00:00:01] [%clk
00:02:49]} Kf7 {[%emt 00:00:01] [%clk 00:02:06]} 16. Nd6+ {[%clk 00:02:50]} Bxd6
{[%emt 00:00:04] [%clk 00:02:04]} 17. Rxd6 {[%emt 00:00:01] [%clk 00:02:51]} Ke7
{[%emt 00:00:12] [%clk 00:01:55]} 18. Rdd1 {[%emt 00:00:07] [%clk 00:02:46]}
Rhd8 {[%emt 00:00:02] [%clk 00:01:54]} 19. Kf3 {[%emt 00:00:01] [%clk 00:02:47]}
Rd5 {[%emt 00:00:08] [%clk 00:01:49]} 20. e4 {[%emt 00:00:07] [%clk 00:02:41]}
Rdd8 {[%emt 00:00:11] [%clk 00:01:40]} 21. h3 {[%emt 00:00:02] [%clk 00:02:40]}
g6 {[%emt 00:00:02] [%clk 00:01:41]} 22. Ke3 {[%clk 00:02:41]} Ne8 {[%emt
00:00:07] [%clk 00:01:36]} 23. Be5 {[%emt 00:00:08] [%clk 00:02:35]} Rac8 {[%emt
00:00:06] [%clk 00:01:33]} 24. h4 {[%emt 00:00:05] [%clk 00:02:31]} Nd6 {[%emt
00:00:09] [%clk 00:01:26]} 25. h5 {[%emt 00:00:06] [%clk 00:02:27]} Nf7 {[%emt
00:00:04] [%clk 00:01:24]} 26. Bc3 {[%clk 00:02:28]} Rxd1 {[%emt 00:00:17] [%clk
00:01:09]} 27. Rxd1 {[%emt 00:00:02] [%clk 00:02:27]} Rd8 {[%emt 00:00:04] [%clk
00:01:08]} 28. Rg1 {[%emt 00:00:19] [%clk 00:02:09]} b5 {[%emt 00:00:19] [%clk
00:00:51]} 29. hxg6 {[%emt 00:00:05] [%clk 00:02:06]} hxg6 {[%emt 00:00:01]
[%clk 00:00:53]} 30. Rh1 {[%clk 00:02:07]} c4 {[%emt 00:00:02] [%clk 00:00:53]}
31. bxc4 {[%emt 00:00:13] [%clk 00:01:56]} bxc4 {[%emt 00:00:02] [%clk
00:00:54]} 32. Bd4 {[%emt 00:00:01] [%clk 00:01:56]} a6 {[%emt 00:00:14] [%clk
00:00:42]} 33. Rc1 {[%emt 00:00:01] [%clk 00:01:57]} Rc8 {[%emt 00:00:01] [%clk
00:00:43]} 34. Bc3 {[%emt 00:00:02] [%clk 00:01:56]} e5 {[%emt 00:00:14] [%clk
00:00:32]} 35. Rb1 {[%emt 00:00:07] [%clk 00:01:51]} Rc6 {[%emt 00:00:11] [%clk
00:00:23]} 36. Rb7+ {[%emt 00:00:02] [%clk 00:01:51]} Ke6 {[%clk 00:00:24]} 37.
Rb8 {[%emt 00:00:04] [%clk 00:01:49]} Rd6 {[%emt 00:00:07] [%clk 00:00:19]} 38.
Bb4 {[%emt 00:00:07] [%clk 00:01:44]} Rd3+ {[%emt 00:00:03] [%clk 00:00:17]} 39.
Ke2 {[%clk 00:01:45]} a5 {[%emt 00:00:12] [%clk 00:00:08]} 40. Rb6+ {[%emt
00:00:09] [%clk 00:01:38]} Kd7 {[%emt 00:00:17]} 41. Bc5 {[%clk 00:01:24]} Rc3
{[%emt 00:00:07] [%clk 00:00:04]} 42. a3 {[%emt 00:00:04] [%clk 00:01:21]} Ng5
{[%emt 00:00:04] [%clk 00:00:03]} 43. Rd6+ {[%emt 00:00:06] [%clk 00:01:16]} Kc7
{[%clk 00:00:05]} 44. Rxg6 {[%emt 00:00:02] [%clk 00:01:16]} Nxe4 {[%emt
00:00:01] [%clk 00:00:06]} 1/2-1/2

[Site "Europe Echecs"]

[Event "Championnat d'Europe de Blitz"]
[Date "2024.12.09"]
[White "Veleski, Robert"]
[Black "Vuckovic, Zarko"]
[WhiteElo "2093"]
[BlackElo "2334"]
[Round "12.40"]
[Result "0-1"]
[TimeControl "180+2"]

1. d4 {[%emt 00:00:05] [%clk 00:03:00]} Nf6 {[%clk 00:03:03]} 2. Nf3 {[%emt
00:00:01] [%clk 00:03:01]} d5 {[%emt 00:00:01] [%clk 00:03:04]} 3. c4 {[%emt
00:00:02] [%clk 00:03:01]} e6 {[%clk 00:03:05]} 4. g3 {[%emt 00:00:02] [%clk
00:03:01]} Bb4+ {[%emt 00:00:01] [%clk 00:03:06]} 5. Bd2 {[%emt 00:00:01] [%clk
00:03:02]} Bd6 {[%clk 00:03:07]} 6. Nc3 {[%emt 00:00:09] [%clk 00:02:54]} c6
{[%emt 00:00:03] [%clk 00:03:07]} 7. Bg2 {[%emt 00:00:02] [%clk 00:02:54]} Nbd7
{[%emt 00:00:01] [%clk 00:03:08]} 8. O-O {[%emt 00:00:10] [%clk 00:02:45]} O-O
{[%emt 00:00:03] [%clk 00:03:08]} 9. Qb3 {[%emt 00:00:04] [%clk 00:02:43]} b6
{[%emt 00:00:11] [%clk 00:02:59]} 10. a4 {[%emt 00:00:03] [%clk 00:02:42]} a5
{[%emt 00:00:07] [%clk 00:02:54]} 11. Rfe1 {[%emt 00:00:05] [%clk 00:02:39]} Ba6
{[%emt 00:00:03] [%clk 00:02:54]} 12. cxd5 {[%emt 00:00:04] [%clk 00:02:37]}
exd5 {[%emt 00:00:02] [%clk 00:02:54]} 13. Rac1 {[%emt 00:00:07] [%clk
00:02:32]} Re8 {[%emt 00:00:03] [%clk 00:02:53]} 14. Bg5 {[%emt 00:00:13] [%clk
00:02:20]} h6 {[%emt 00:00:05] [%clk 00:02:51]} 15. Bxf6 {[%emt 00:00:03] [%clk
00:02:20]} Nxf6 {[%emt 00:00:01] [%clk 00:02:51]} 16. e3 {[%clk 00:02:21]} Rc8
{[%emt 00:00:20] [%clk 00:02:33]} 17. Bf1 {[%emt 00:00:19] [%clk 00:02:04]} Bb7
{[%clk 00:02:35]} 18. Bd3 {[%emt 00:00:06] [%clk 00:02:01]} Bb4 {[%clk
00:02:36]} 19. Red1 {[%emt 00:00:03] [%clk 00:02:00]} c5 {[%emt 00:00:10] [%clk
00:02:28]} 20. Bb5 {[%emt 00:00:03] [%clk 00:01:59]} Re6 {[%emt 00:00:08] [%clk
00:02:22]} 21. Ne2 {[%emt 00:00:07] [%clk 00:01:54]} Ne4 {[%emt 00:00:05] [%clk
00:02:18]} 22. Nf4 {[%emt 00:00:03] [%clk 00:01:53]} Rd6 {[%emt 00:00:06] [%clk
00:02:14]} 23. Rc2 {[%emt 00:00:17] [%clk 00:01:39]} Qf6 {[%emt 00:00:35] [%clk
00:01:41]} 24. Kg2 {[%emt 00:00:08] [%clk 00:01:34]} g5 {[%emt 00:00:06] [%clk
00:01:37]} 25. Nh5 {[%emt 00:00:23] [%clk 00:01:13]} Qf5 {[%emt 00:00:02] [%clk
00:01:36]} 26. h3 {[%emt 00:00:05] [%clk 00:01:10]} Rcd8 {[%emt 00:00:31] [%clk
00:01:08]} 27. g4 {[%emt 00:00:04] [%clk 00:01:07]} Qe6 {[%emt 00:00:01] [%clk
00:01:07]} 28. Ng3 {[%emt 00:00:04] [%clk 00:01:07]} Nxg3 {[%emt 00:00:07] [%clk
00:01:03]} 29. Kxg3 {[%emt 00:00:03] [%clk 00:01:05]} c4 {[%emt 00:00:06] [%clk
00:00:59]} 30. Qa2 {[%emt 00:00:02] [%clk 00:01:06]} Qe4 {[%emt 00:00:01] [%clk
00:00:59]} 31. Qb1 {[%emt 00:00:05] [%clk 00:01:03]} Rf6 {[%clk 00:01:00]} 32.
Ne5 {[%emt 00:00:06] [%clk 00:00:58]} Bd6 {[%emt 00:00:01] [%clk 00:01:01]} 33.
Rcd2 {[%emt 00:00:14] [%clk 00:00:46]} Bxe5+ {[%emt 00:00:01] [%clk 00:01:02]}
34. dxe5 {[%emt 00:00:01] [%clk 00:00:47]} Qxe5+ {[%clk 00:01:02]} 35. Kg2
{[%emt 00:00:28] [%clk 00:00:21]} d4+ {[%emt 00:00:01] [%clk 00:01:03]} 36. Kg1
{[%emt 00:00:08] [%clk 00:00:15]} Kg7 {[%emt 00:00:08] [%clk 00:00:57]} 37. Rxd4
{[%emt 00:00:06] [%clk 00:00:12]} Rxd4 {[%emt 00:00:10] [%clk 00:00:49]} 38.
Rxd4 {[%emt 00:00:01] [%clk 00:00:13]} Rf3 {[%clk 00:00:50]} 39. Qf1 {[%emt
00:00:08] [%clk 00:00:07]} Qe6 {[%emt 00:00:27] [%clk 00:00:25]} 40. Bxc4 {[%emt
00:00:03] [%clk 00:00:06]} Qe5 {[%clk 00:00:25]} 41. Be2 {[%emt 00:00:02] [%clk
00:00:07]} Rf6 {[%emt 00:00:04] [%clk 00:00:23]} 42. Qd1 {[%emt 00:00:02] [%clk
00:00:07]} Qc5 {[%emt 00:00:12] [%clk 00:00:13]} 43. Rc4 {[%emt 00:00:04] [%clk
00:00:06]} Qe7 {[%emt 00:00:08] [%clk 00:00:06]} 44. Qd4 {[%emt 00:00:01] [%clk
00:00:07]} Kf8 {[%emt 00:00:02] [%clk 00:00:06]} 45. Bd3 {[%emt 00:00:01] [%clk
00:00:07]} Kg8 {[%emt 00:00:03] [%clk 00:00:05]} 46. Bf5 {[%emt 00:00:02]} Rd6
{[%clk 00:00:06]} 47. Qc3 {[%emt 00:00:01] [%clk 00:00:08]} Rd1+ {[%emt
00:00:01] [%clk 00:00:06]} 48. Kh2 {[%emt 00:00:02] [%clk 00:00:09]} Qd6+ {[%clk
00:00:08]} 49. f4 {[%emt 00:00:03] [%clk 00:00:08]} Rd2+ {[%clk 00:00:09]} 50.
Kg1 {[%emt 00:00:04] [%clk 00:00:07]} Rd1+ {[%emt 00:00:03] [%clk 00:00:07]} 51.
Kf2 {[%emt 00:00:01] [%clk 00:00:08]} Qd2+ {[%emt 00:00:01] [%clk 00:00:08]} 52.
Qxd2 {[%clk 00:00:09]} Rxd2+ {[%clk 00:00:10]} 53. Ke1 {[%clk 00:00:10]} Rxb2
{[%clk 00:00:10]} 54. Rc7 {[%emt 00:00:02] [%clk 00:00:11]} Bg2 {[%emt 00:00:02]
[%clk 00:00:11]} 55. fxg5 {[%emt 00:00:01] [%clk 00:00:12]} hxg5 {[%clk
00:00:12]} 56. h4 {[%clk 00:00:14]} gxh4 {[%emt 00:00:01] [%clk 00:00:13]} 57.
g5 {[%clk 00:00:15]} h3 {[%clk 00:00:14]} 58. g6 {[%clk 00:00:17]} fxg6 {[%emt
00:00:01] [%clk 00:00:14]} 59. Bxg6 {[%clk 00:00:18]} h2 {[%emt 00:00:01] [%clk
00:00:15]} 60. Rh7 {[%emt 00:00:01] [%clk 00:00:19]} h1=Q+ {[%emt 00:00:02]
[%clk 00:00:15]} 0-1

[Site "Europe Echecs"]

[Event "Championnat d'Europe de Blitz"]
[Date "2024.12.09"]
[White "Radovanovic, Dusan"]
[Black "Stankovic, Milos"]
[WhiteElo "2274"]
[BlackElo "2462"]
[Round "12.41"]
[Result "1/2-1/2"]
[TimeControl "180+2"]

1. e4 {[%emt 00:18:57] [%clk 00:03:02]} e6 {[%emt 00:00:01] [%clk 00:03:03]} 2.
d4 {[%emt 00:00:02] [%clk 00:03:03]} d5 {[%clk 00:03:04]} 3. Nc3 {[%clk
00:03:04]} Nf6 {[%emt 00:00:01] [%clk 00:03:04]} 4. Bg5 {[%emt 00:00:05] [%clk
00:03:01]} dxe4 {[%emt 00:00:01] [%clk 00:03:05]} 5. Nxe4 {[%emt 00:00:02] [%clk
00:03:02]} Be7 {[%clk 00:03:06]} 6. Bxf6 {[%emt 00:00:02] [%clk 00:03:02]} gxf6
{[%emt 00:00:01] [%clk 00:03:06]} 7. Nf3 {[%emt 00:00:02] [%clk 00:03:02]} f5
{[%clk 00:03:07]} 8. Nc3 {[%emt 00:00:02] [%clk 00:03:03]} c6 {[%emt 00:00:01]
[%clk 00:03:08]} 9. Qd2 {[%emt 00:00:28] [%clk 00:02:38]} Qc7 {[%emt 00:00:04]
[%clk 00:03:06]} 10. g3 {[%emt 00:00:15] [%clk 00:02:26]} Nd7 {[%emt 00:00:15]
[%clk 00:02:52]} 11. Bg2 {[%emt 00:00:03] [%clk 00:02:25]} h5 {[%emt 00:00:01]
[%clk 00:02:52]} 12. h4 {[%emt 00:00:07] [%clk 00:02:22]} b6 {[%emt 00:00:17]
[%clk 00:02:37]} 13. O-O-O {[%emt 00:00:03] [%clk 00:02:21]} Bb7 {[%emt
00:00:01] [%clk 00:02:38]} 1/2-1/2

[Site "Europe Echecs"]

[Event "Championnat d'Europe de Blitz"]
[Date "2024.12.09"]
[White "Dinev, Dejan"]
[Black "Nikolovski, Nikola"]
[WhiteElo "2209"]
[BlackElo "2407"]
[Round "12.42"]
[Result "0-1"]
[TimeControl "180+2"]

1. e4 {[%emt 00:00:03] [%clk 00:03:00]} d5 {[%emt 00:00:01] [%clk 00:03:03]} 2.
exd5 {[%emt 00:00:05] [%clk 00:02:56]} Qxd5 {[%emt 00:00:02] [%clk 00:03:04]} 3.
Nc3 {[%emt 00:00:02] [%clk 00:02:56]} Qa5 {[%emt 00:00:02] [%clk 00:03:04]} 4.
Nf3 {[%emt 00:00:02] [%clk 00:02:56]} Nf6 {[%emt 00:00:02] [%clk 00:03:05]} 5.
Bc4 {[%emt 00:00:06] [%clk 00:02:52]} Bg4 {[%emt 00:00:05] [%clk 00:03:01]} 6.
O-O {[%emt 00:00:13] [%clk 00:02:41]} e6 {[%emt 00:00:03] [%clk 00:03:01]} 7. d4
{[%emt 00:00:08] [%clk 00:02:35]} Nc6 {[%emt 00:00:14] [%clk 00:02:49]} 8. Nb5
{[%emt 00:00:36] [%clk 00:02:02]} a6 {[%emt 00:00:28] [%clk 00:02:23]} 9. Nc3
{[%emt 00:00:18] [%clk 00:01:45]} O-O-O {[%emt 00:00:09] [%clk 00:02:17]} 10.
Be3 {[%emt 00:00:04] [%clk 00:01:43]} Bxf3 {[%emt 00:00:19] [%clk 00:01:59]} 11.
gxf3 {[%emt 00:00:16] [%clk 00:01:30]} Qh5 {[%emt 00:00:15] [%clk 00:01:46]} 12.
Ne4 {[%emt 00:00:23] [%clk 00:01:09]} Nd5 {[%emt 00:00:40] [%clk 00:01:09]} 13.
Ng3 {[%emt 00:00:02] [%clk 00:01:09]} Qh3 {[%emt 00:00:07] [%clk 00:01:04]} 14.
Qe2 {[%emt 00:00:10] [%clk 00:01:01]} Bd6 {[%emt 00:00:11] [%clk 00:00:55]} 15.
Bd3 {[%emt 00:00:11] [%clk 00:00:52]} h5 {[%emt 00:00:08] [%clk 00:00:49]} 16.
Rfe1 {[%emt 00:00:24] [%clk 00:00:30]} h4 {[%emt 00:00:03] [%clk 00:00:49]} 17.
Nf1 {[%emt 00:00:01] [%clk 00:00:30]} Nxd4 {[%emt 00:00:17] [%clk 00:00:35]} 18.
Bxd4 {[%emt 00:00:15] [%clk 00:00:16]} Nf4 {[%clk 00:00:35]} 19. Ne3 {[%emt
00:00:14] [%clk 00:00:05]} Nxe2+ {[%emt 00:00:02] [%clk 00:00:35]} 20. Rxe2
{[%emt 00:00:05] [%clk 00:00:00]} 0-1

[Site "Europe Echecs"]

[Event "Championnat d'Europe de Blitz"]
[Date "2024.12.09"]
[White "Biljanic, Ljubomir"]
[Black "Mohr, Georg"]
[WhiteElo "2130"]
[BlackElo "2385"]
[Round "12.43"]
[Result "0-1"]
[TimeControl "180+2"]

1. d4 {[%clk 00:03:04]} Nf6 {[%clk 00:03:03]} 2. c4 {[%clk 00:03:05]} e5 {[%emt
00:00:01] [%clk 00:03:03]} 3. dxe5 {[%emt 00:00:05] [%clk 00:03:02]} Ng4 {[%clk
00:03:04]} 4. Nf3 {[%emt 00:00:05] [%clk 00:03:00]} Bc5 {[%emt 00:00:01] [%clk
00:03:06]} 5. e3 {[%emt 00:00:02] [%clk 00:03:00]} Nc6 {[%clk 00:03:07]} 6. Be2
{[%emt 00:00:14] [%clk 00:02:48]} O-O {[%emt 00:00:01] [%clk 00:03:08]} 7. Nbd2
{[%emt 00:00:04] [%clk 00:02:47]} Re8 {[%emt 00:00:02] [%clk 00:03:08]} 8. Nb3
{[%emt 00:00:16] [%clk 00:02:33]} Bf8 {[%emt 00:00:06] [%clk 00:03:03]} 9. O-O
{[%emt 00:00:04] [%clk 00:02:31]} a5 {[%emt 00:00:02] [%clk 00:03:03]} 10. Nbd4
{[%emt 00:00:10] [%clk 00:02:23]} Ngxe5 {[%emt 00:00:02] [%clk 00:03:04]} 11. b3
{[%emt 00:00:07] [%clk 00:02:18]} Nxf3+ {[%emt 00:00:11] [%clk 00:02:54]} 12.
Nxf3 {[%emt 00:00:19] [%clk 00:02:02]} a4 {[%emt 00:00:22] [%clk 00:02:34]} 13.
Bb2 {[%emt 00:00:01] [%clk 00:02:02]} b6 {[%emt 00:00:03] [%clk 00:02:34]} 14.
Nd4 {[%emt 00:00:16] [%clk 00:01:47]} Ne5 {[%emt 00:00:07] [%clk 00:02:29]} 15.
Nf3 {[%emt 00:00:16] [%clk 00:01:34]} Ng6 {[%emt 00:00:05] [%clk 00:02:26]} 16.
Nd4 {[%emt 00:00:09] [%clk 00:01:27]} Bb7 {[%emt 00:00:02] [%clk 00:02:26]} 17.
Bf3 {[%emt 00:00:01] [%clk 00:01:27]} Bxf3 {[%emt 00:00:26] [%clk 00:02:03]} 18.
Qxf3 {[%emt 00:00:05] [%clk 00:01:24]} Ne5 {[%emt 00:00:12] [%clk 00:01:52]} 19.
Qg3 {[%emt 00:00:17] [%clk 00:01:09]} d6 {[%emt 00:00:06] [%clk 00:01:49]} 20.
Bc3 {[%emt 00:00:26] [%clk 00:00:45]} Qd7 {[%emt 00:00:17] [%clk 00:01:35]} 21.
Nf3 {[%emt 00:00:07] [%clk 00:00:38]} Nd3 {[%emt 00:00:04] [%clk 00:01:34]} 22.
Rad1 {[%emt 00:00:09] [%clk 00:00:30]} Nc5 {[%emt 00:00:02] [%clk 00:01:35]} 23.
b4 {[%emt 00:00:08] [%clk 00:00:23]} Ne4 {[%emt 00:00:02] [%clk 00:01:36]} 0-1

[Site "Europe Echecs"]

[Event "Championnat d'Europe de Blitz"]
[Date "2024.12.09"]
[White "Martins, Diogo Faria Oliveira"]
[Black "Domingo Nunez, Ruben"]
[WhiteElo "1961"]
[BlackElo "2409"]
[Round "12.44"]
[Result "1/2-1/2"]
[TimeControl "180+2"]

1. e4 {[%emt 00:13:53] [%clk 00:03:04]} g6 {[%emt 00:00:03] [%clk 00:03:03]} 2.
d4 {[%clk 00:03:05]} Bg7 {[%clk 00:03:04]} 3. Nf3 {[%clk 00:03:06]} c6 {[%clk
00:03:06]} 4. c4 {[%emt 00:00:13]} d5 {[%clk 00:02:59]} 5. cxd5 {[%emt 00:00:18]
[%clk 00:02:48]} cxd5 {[%emt 00:00:01] [%clk 00:03:00]} 6. e5 {[%emt 00:00:01]
[%clk 00:02:48]} Nc6 {[%emt 00:00:03] [%clk 00:03:00]} 7. Nc3 {[%emt 00:00:03]
[%clk 00:02:47]} Bg4 {[%emt 00:00:03] [%clk 00:02:58]} 8. Be3 {[%emt 00:00:03]
[%clk 00:02:46]} f6 {[%emt 00:00:02] [%clk 00:02:58]} 9. Qb3 {[%emt 00:00:40]
[%clk 00:02:08]} Qd7 {[%emt 00:01:21] [%clk 00:01:39]} 10. Qxd5 {[%emt 00:00:15]
[%clk 00:01:55]} Qxd5 {[%emt 00:00:06] [%clk 00:01:36]} 11. Nxd5 {[%clk
00:01:55]} O-O-O {[%emt 00:00:01] [%clk 00:01:37]} 12. exf6 {[%emt 00:00:08]
[%clk 00:01:49]} exf6 {[%emt 00:00:05] [%clk 00:01:34]} 13. Bc4 {[%emt 00:00:23]
[%clk 00:01:28]} Na5 {[%clk 00:01:35]} 14. Rc1 {[%emt 00:00:02] [%clk 00:01:28]}
Nc6 {[%emt 00:00:55] [%clk 00:00:42]} 15. Nf4 {[%emt 00:00:26] [%clk 00:01:04]}
Kd7 {[%emt 00:00:23] [%clk 00:00:21]} 16. d5 {[%emt 00:00:06] [%clk 00:01:00]}
Bxf3 {[%emt 00:00:02] [%clk 00:00:20]} 17. dxc6+ {[%emt 00:00:10] [%clk
00:00:53]} Bxc6 {[%emt 00:00:01] [%clk 00:00:21]} 18. O-O {[%emt 00:00:03] [%clk
00:00:52]} Kc8 {[%emt 00:00:08] [%clk 00:00:15]} 19. Ne6 {[%emt 00:00:03] [%clk
00:00:50]} Rd7 {[%emt 00:00:01] [%clk 00:00:16]} 20. Nxg7 {[%emt 00:00:04] [%clk
00:00:49]} Rxg7 {[%clk 00:00:17]} 21. b4 {[%emt 00:00:12] [%clk 00:00:38]} Kd8
{[%emt 00:00:13] [%clk 00:00:06]} 22. Bxa7 {[%emt 00:00:02] [%clk 00:00:38]} Nh6
{[%emt 00:00:03] [%clk 00:00:06]} 23. b5 {[%emt 00:00:03] [%clk 00:00:37]} Bd7
{[%emt 00:00:01] [%clk 00:00:06]} 24. Bb6+ {[%emt 00:00:02] [%clk 00:00:37]} Ke8
{[%clk 00:00:08]} 25. Rfe1+ {[%emt 00:00:01] [%clk 00:00:38]} Re7 {[%emt
00:00:01] [%clk 00:00:08]} 26. Rxe7+ {[%emt 00:00:08] [%clk 00:00:33]} Kxe7
{[%clk 00:00:09]} 27. Bc5+ {[%emt 00:00:02] [%clk 00:00:33]} Kd8 {[%emt
00:00:03] [%clk 00:00:08]} 28. f3 {[%emt 00:00:05] [%clk 00:00:30]} Nf5 {[%emt
00:00:02] [%clk 00:00:09]} 29. Rd1 {[%emt 00:00:03] [%clk 00:00:29]} Re8 {[%emt
00:00:01] [%clk 00:00:10]} 30. Kf2 {[%emt 00:00:05] [%clk 00:00:25]} Kc8 {[%clk
00:00:11]} 31. a4 {[%emt 00:00:05] [%clk 00:00:23]} Kc7 {[%emt 00:00:07] [%clk
00:00:06]} 32. a5 {[%emt 00:00:03] [%clk 00:00:22]} Re5 {[%clk 00:00:07]} 33.
b6+ {[%emt 00:00:04] [%clk 00:00:21]} Kc8 {[%emt 00:00:01] [%clk 00:00:07]} 34.
Bb4 {[%emt 00:00:11] [%clk 00:00:12]} Ne3 {[%emt 00:00:01] [%clk 00:00:08]} 35.
Rc1 {[%emt 00:00:09] [%clk 00:00:05]} Bc6 {[%emt 00:00:01] [%clk 00:00:09]} 36.
a6 {[%emt 00:00:02] [%clk 00:00:05]} Kb8 {[%emt 00:00:07] [%clk 00:00:05]} 37.
a7+ {[%clk 00:00:06]} Ka8 {[%emt 00:00:01] [%clk 00:00:06]} 38. Bd6 {[%emt
00:00:01] [%clk 00:00:06]} Nxc4 {[%emt 00:00:04] [%clk 00:00:05]} 39. Rxc4
{[%emt 00:00:02] [%clk 00:00:06]} Rb5 {[%emt 00:00:02] [%clk 00:00:05]} 40. Bc7
{[%emt 00:00:01] [%clk 00:00:06]} Rd5 {[%emt 00:00:03] [%clk 00:00:05]} 41. Kg3
{[%emt 00:00:01] [%clk 00:00:07]} Rg5+ {[%clk 00:00:06]} 42. Kf2 {[%emt
00:00:01] [%clk 00:00:08]} Rd5 {[%clk 00:00:07]} 43. h4 {[%clk 00:00:08]} h5
{[%emt 00:00:01] [%clk 00:00:08]} 44. Kg3 {[%emt 00:00:02] [%clk 00:00:09]} Rd7
{[%emt 00:00:02] [%clk 00:00:07]} 45. Rc3 {[%emt 00:00:05] [%clk 00:00:06]} Re7
{[%emt 00:00:04] [%clk 00:00:05]} 46. Rd3 {[%emt 00:00:02] [%clk 00:00:06]} Re8
{[%clk 00:00:07]} 47. Rd6 {[%clk 00:00:07]} Rf8 {[%emt 00:00:01] [%clk
00:00:08]} 48. Re6 {[%emt 00:00:02] [%clk 00:00:06]} Bd5 {[%emt 00:00:03] [%clk
00:00:08]} 49. Re7 {[%clk 00:00:07]} Bc6 {[%emt 00:00:02] [%clk 00:00:08]} 50.
Bf4 {[%emt 00:00:03] [%clk 00:00:06]} Rg8 {[%clk 00:00:09]} 51. Re6 {[%emt
00:00:02] [%clk 00:00:06]} g5 {[%emt 00:00:01] [%clk 00:00:11]} 52. hxg5 {[%emt
00:00:02] [%clk 00:00:06]} fxg5 {[%clk 00:00:12]} 53. Be5 {[%emt 00:00:04] [%clk
00:00:05]} h4+ {[%emt 00:00:02] [%clk 00:00:12]} 54. Kh2 {[%emt 00:00:01] [%clk
00:00:05]} Bd5 {[%emt 00:00:02] [%clk 00:00:12]} 55. Re7 {[%emt 00:00:02] [%clk
00:00:06]} Bc6 {[%emt 00:00:04] [%clk 00:00:10]} 56. Rg7 {[%emt 00:00:01] [%clk
00:00:06]} Rf8 {[%emt 00:00:05] [%clk 00:00:07]} 57. Rxg5 {[%clk 00:00:07]} h3
{[%emt 00:00:02] [%clk 00:00:08]} 58. f4 {[%emt 00:00:02] [%clk 00:00:06]} hxg2
{[%emt 00:00:02] [%clk 00:00:09]} 59. Kg1 {[%emt 00:00:04] [%clk 00:00:04]} Rd8
{[%emt 00:00:02] [%clk 00:00:09]} 60. Rxg2 {[%emt 00:00:03] [%clk 00:00:03]}
Rd1+ {[%emt 00:00:01] [%clk 00:00:10]} 61. Kh2 {[%clk 00:00:04]} Bxg2 {[%clk
00:00:11]} 62. Kxg2 {[%clk 00:00:05]} Rb1 {[%emt 00:00:01] [%clk 00:00:12]} 63.
Kf3 {[%emt 00:00:04] [%clk 00:00:03]} Rxb6 {[%emt 00:00:04] [%clk 00:00:13]} 64.
Kg4 {[%emt 00:00:01] [%clk 00:00:04]} Rb5 {[%emt 00:00:02] [%clk 00:00:14]} 65.
Bb8 {[%clk 00:00:05]} Rd5 {[%emt 00:00:03] [%clk 00:00:14]} 66. f5 {[%clk
00:00:06]} b5 {[%clk 00:00:15]} 67. f6 {[%emt 00:00:01] [%clk 00:00:07]} Rd7
{[%clk 00:00:16]} 68. Kf5 {[%clk 00:00:08]} b4 {[%clk 00:00:17]} 69. Be5 {[%emt
00:00:03] [%clk 00:00:08]} Rxa7 {[%emt 00:00:06] [%clk 00:00:13]} 70. Kg6 {[%emt
00:00:03] [%clk 00:00:07]} Ra6 {[%emt 00:00:03] [%clk 00:00:12]} 71. Kg7 {[%clk
00:00:08]} Ra2 {[%emt 00:00:08] [%clk 00:00:06]} 72. f7 {[%clk 00:00:09]} Rg2+
{[%emt 00:00:01] [%clk 00:00:07]} 73. Kh7 {[%emt 00:00:01] [%clk 00:00:09]} Rf2
{[%emt 00:00:03] [%clk 00:00:08]} 74. Kg8 {[%clk 00:00:09]} Rg2 {[%emt 00:00:02]
[%clk 00:00:08]} 75. Kh7 {[%clk 00:00:10]} Rf2 {[%emt 00:00:02] [%clk 00:00:07]}
76. Kg7 {[%emt 00:00:02] [%clk 00:00:10]} Rg2+ {[%emt 00:00:02] [%clk 00:00:08]}
77. Kf6 {[%clk 00:00:11]} Rf2+ {[%emt 00:00:03] [%clk 00:00:07]} 78. Ke7 {[%emt
00:00:02] [%clk 00:00:11]} Rxf7+ {[%emt 00:00:02] [%clk 00:00:06]} 79. Kxf7
{[%emt 00:00:01] [%clk 00:00:11]} Kb7 {[%clk 00:00:08]} 80. Bf6 {[%emt 00:00:02]
[%clk 00:00:12]} Kc6 {[%clk 00:00:10]} 81. Bg7 {[%clk 00:00:13]} Kd5 {[%clk
00:00:11]} 82. Bf6 {[%clk 00:00:14]} Kc4 {[%clk 00:00:12]} 83. Bg7 {[%emt
00:00:01] [%clk 00:00:15]} Kd3 {[%clk 00:00:13]} 84. Bf6 {[%emt 00:00:01] [%clk
00:00:17]} Kc2 {[%clk 00:00:15]} 85. Bg7 {[%clk 00:00:18]} Kd2 {[%clk 00:00:16]}
86. Bf6 {[%clk 00:00:19]} Ke3 {[%clk 00:00:17]} 87. Ke6 {[%clk 00:00:20]} Ke4
{[%clk 00:00:19]} 88. Bg7 {[%clk 00:00:21]} Kf4 {[%clk 00:00:20]} 89. Be5+
{[%emt 00:00:01] [%clk 00:00:22]} Kg5 {[%clk 00:00:21]} 90. Bb2 {[%emt 00:00:01]
[%clk 00:00:23]} Kf4 {[%clk 00:00:23]} 91. Kd5 {[%emt 00:00:01] [%clk 00:00:24]}
Ke3 {[%clk 00:00:24]} 92. Kc4 {[%clk 00:00:25]} b3 {[%emt 00:00:01] [%clk
00:00:26]} 93. Kxb3 {[%clk 00:00:26]} 1/2-1/2

[Site "Europe Echecs"]